{"text_format":"3","workbook":"xlsx","n_sheets":2,"sheets":["Pradžia","Atostogų biudžeto pl. priemonė"],"not_rendered":{"defined_names":1},"read":"whole","date_system":"1900"}

{"sheet":"Pradžia","index":0,"n_rows":4,"n_cols":2,"rows_kept":4}
[null,"Kaip naudoti šį šabloną"]
[null,"Sekite savo išlaidas, naudodami šią atostogų biudžeto planavimo priemonę."]
[null,"Norėdami pradėti, įveskite savo biudžetą ir faktines išlaidas kiekvienos kategorijos lentelėje."]
[null,"Atostogų biudžetas, bendra faktinė išleista suma ir skirtumas apskaičiuojami automatiškai."]

{"sheet":"Atostogų biudžeto pl. priemonė","index":1,"n_rows":36,"n_cols":14,"rows_kept":36,"merged":[[0,2,5,7],[2,10,2,11],[8,2,8,5],[8,10,8,13],[18,2,18,5],[18,10,18,13],[29,2,29,5],[29,10,29,13]]}
[null,null,"Atostogų biudžeto \nplanavimo priemonė"]
[]
[{"$nulls":10},"ŠVENČIŲ BIUDŽETAS",null,null,{"$f":"SUM(Dovanos[Biudžetas],Pakuotės[Biudžetas],(Kelionė[Biudžetas],(Maitinimas[Biudžetas],(Pramogos[Biudžetas],Įvairūs[Biudžetas]))))","v":{"v":750,"d":"750.00 EUR"}}]
[{"$nulls":10},"FAKTINĖ IŠLEISTA SUMA",null,null,{"$f":"SUM((Dovanos[Faktinės],(Pakuotės[Faktinės],(Kelionė[Faktinės],(Maitinimas[Faktinės],(Pramogos[Faktinės],(Įvairūs[Faktinės])))))))","v":{"v":820,"d":"820.00 EUR"}}]
[]
[{"$nulls":10},"SKIRTUMAS (viršytas / nepasiektas biudžetas)",null,null,{"$f":"SUM(N3-N4)","v":{"v":-70,"d":"-70.00 EUR"}}]
[]
[]
[null,null,"DOVANOS",{"$nulls":7},"ATOSTOGŲ MENIU"]
[null,null,"Elementas","Biudžetas","Faktinės","Skirtumas",{"$nulls":4},"Elementas","Biudžetas","Faktinės","Skirtumas"]
[null,null,"Šeima",{"v":500,"d":"500.00 EUR"},{"v":495,"d":"495.00 EUR"},{"$f":"Dovanos[[#This Row],[Biudžetas]]-Dovanos[[#This Row],[Faktinės]]","v":{"v":5,"d":"5.00 EUR"}},{"$nulls":4},"Maisto prekės",null,null,{"$f":"Maitinimas[[#This Row],[Biudžetas]]-Maitinimas[[#This Row],[Faktinės]]","v":{"v":0,"d":"0.00 EUR"}}]
[null,null,"Draugai",{"v":250,"d":"250.00 EUR"},{"v":325,"d":"325.00 EUR"},{"$f":"Dovanos[[#This Row],[Biudžetas]]-Dovanos[[#This Row],[Faktinės]]","v":{"v":-75,"d":"-75.00 EUR"}},{"$nulls":4},"Aukojimai",null,null,{"$f":"Maitinimas[[#This Row],[Biudžetas]]-Maitinimas[[#This Row],[Faktinės]]","v":{"v":0,"d":"0.00 EUR"}}]
[null,null,"Bendradarbiai",null,null,{"$f":"Dovanos[[#This Row],[Biudžetas]]-Dovanos[[#This Row],[Faktinės]]","v":{"v":0,"d":"0.00 EUR"}},{"$nulls":4},"Dekoracijos",null,null,{"$f":"Maitinimas[[#This Row],[Biudžetas]]-Maitinimas[[#This Row],[Faktinės]]","v":{"v":0,"d":"0.00 EUR"}}]
[null,null,"Mokytojai, auklės, ir pan.",null,null,{"$f":"Dovanos[[#This Row],[Biudžetas]]-Dovanos[[#This Row],[Faktinės]]","v":{"v":0,"d":"0.00 EUR"}},{"$nulls":4},"Kita (skirtukas paskutiniame stulpelyje šioje eilutėje, skirtas įtraukti eilutę)",null,null,{"$f":"Maitinimas[[#This Row],[Biudžetas]]-Maitinimas[[#This Row],[Faktinės]]","v":{"v":0,"d":"0.00 EUR"}}]
[null,null,"Labdaros aukos",null,null,{"$f":"Dovanos[[#This Row],[Biudžetas]]-Dovanos[[#This Row],[Faktinės]]","v":{"v":0,"d":"0.00 EUR"}},{"$nulls":7},{"$f":"Maitinimas[[#This Row],[Biudžetas]]-Maitinimas[[#This Row],[Faktinės]]","v":{"v":0,"d":"0.00 EUR"}}]
[null,null,"Kita (skirtukas paskutiniame stulpelyje šioje eilutėje, skirtas įtraukti eilutę)",null,null,{"$f":"Dovanos[[#This Row],[Biudžetas]]-Dovanos[[#This Row],[Faktinės]]","v":{"v":0,"d":"0.00 EUR"}}]
[null,null,"Suma",{"$f":"SUBTOTAL(109,Dovanos[Biudžetas])","v":{"v":750,"d":"750.00 EUR"}},{"$f":"SUBTOTAL(109,Dovanos[Faktinės])","v":{"v":820,"d":"820.00 EUR"}},{"$f":"SUBTOTAL(109,Dovanos[Skirtumas])","v":{"v":-70,"d":"-70.00 EUR"}},{"$nulls":4},"Suma",{"$f":"SUBTOTAL(109,Maitinimas[Biudžetas])","v":{"v":0,"d":"0.00 EUR"}},{"$f":"SUBTOTAL(109,Maitinimas[Faktinės])","v":{"v":0,"d":"0.00 EUR"}},{"$f":"SUBTOTAL(109,Maitinimas[Skirtumas])","v":{"v":0,"d":"0.00 EUR"}}]
[]
[null,null,"PAKUOTĖS",{"$nulls":7},"PRAMOGOS"]
[null,null,"Elementas","Biudžetas","Faktinės","Skirtumas",{"$nulls":4},"Elementas","Biudžetas","Faktinės","Skirtumas"]
[null,null,"Dovanų popierius",null,null,{"$f":"Pakuotės[[#This Row],[Biudžetas]]-Pakuotės[[#This Row],[Faktinės]]","v":{"v":0,"d":"0.00 EUR"}},{"$nulls":4},"Padedantys asmenys (barmenas, maisto ir gėrimų tiekėjas, valytojai ir kt.)",null,null,{"$f":"Pramogos[[#This Row],[Biudžetas]]-Pramogos[[#This Row],[Faktinės]]","v":{"v":0,"d":"0.00 EUR"}}]
[null,null,"Žymės",null,null,{"$f":"Pakuotės[[#This Row],[Biudžetas]]-Pakuotės[[#This Row],[Faktinės]]","v":{"v":0,"d":"0.00 EUR"}},{"$nulls":4},"Dekoracijos",null,null,{"$f":"Pramogos[[#This Row],[Biudžetas]]-Pramogos[[#This Row],[Faktinės]]","v":{"v":0,"d":"0.00 EUR"}}]
[null,null,"Prekės (juostelės, juostos ir kt.)",null,null,{"$f":"Pakuotės[[#This Row],[Biudžetas]]-Pakuotės[[#This Row],[Faktinės]]","v":{"v":0,"d":"0.00 EUR"}},{"$nulls":4},"Maistas ir gėrimai",null,null,{"$f":"Pramogos[[#This Row],[Biudžetas]]-Pramogos[[#This Row],[Faktinės]]","v":{"v":0,"d":"0.00 EUR"}}]
[null,null,"Dėžutės",null,null,{"$f":"Pakuotės[[#This Row],[Biudžetas]]-Pakuotės[[#This Row],[Faktinės]]","v":{"v":0,"d":"0.00 EUR"}},{"$nulls":4},"Drabužiai",null,null,{"$f":"Pramogos[[#This Row],[Biudžetas]]-Pramogos[[#This Row],[Faktinės]]","v":{"v":0,"d":"0.00 EUR"}}]
[null,null,"Pašto išlaidos",null,null,{"$f":"Pakuotės[[#This Row],[Biudžetas]]-Pakuotės[[#This Row],[Faktinės]]","v":{"v":0,"d":"0.00 EUR"}},{"$nulls":4},"Bilietai",null,null,{"$f":"Pramogos[[#This Row],[Biudžetas]]-Pramogos[[#This Row],[Faktinės]]","v":{"v":0,"d":"0.00 EUR"}}]
[null,null,"Kita (skirtukas paskutiniame stulpelyje šioje eilutėje, skirtas įtraukti eilutę)",null,null,{"$f":"Pakuotės[[#This Row],[Biudžetas]]-Pakuotės[[#This Row],[Faktinės]]","v":{"v":0,"d":"0.00 EUR"}},{"$nulls":4},"Pietūs išsinešti",null,null,{"$f":"Pramogos[[#This Row],[Biudžetas]]-Pramogos[[#This Row],[Faktinės]]","v":{"v":0,"d":"0.00 EUR"}}]
[{"$nulls":10},"Kita (skirtukas paskutiniame stulpelyje šioje eilutėje, skirtas įtraukti eilutę)",null,null,{"$f":"Pramogos[[#This Row],[Biudžetas]]-Pramogos[[#This Row],[Faktinės]]","v":{"v":0,"d":"0.00 EUR"}}]
[null,null,"Suma",{"$f":"SUBTOTAL(109,Pakuotės[Biudžetas])","v":{"v":0,"d":"0.00 EUR"}},{"$f":"SUBTOTAL(109,Pakuotės[Faktinės])","v":{"v":0,"d":"0.00 EUR"}},{"$f":"SUBTOTAL(109,Pakuotės[Skirtumas])","v":{"v":0,"d":"0.00 EUR"}},{"$nulls":4},"Suma",{"$f":"SUBTOTAL(109,Pramogos[Biudžetas])","v":{"v":0,"d":"0.00 EUR"}},{"$f":"SUBTOTAL(109,Pramogos[Faktinės])","v":{"v":0,"d":"0.00 EUR"}},{"$f":"SUBTOTAL(109,Pramogos[Skirtumas])","v":{"v":0,"d":"0.00 EUR"}}]
[]
[null,null,"KELIONĖ",{"$nulls":7},"ĮVAIRŪS"]
[null,null,"Elementas","Biudžetas","Faktinės","Skirtumas",{"$nulls":4},"Elementas","Biudžetas","Faktinės","Skirtumas"]
[null,null,"Lėktuvo bilietų kaina",null,null,{"$f":"Kelionė[[#This Row],[Biudžetas]]-Kelionė[[#This Row],[Faktinės]]","v":{"v":0,"d":"0.00 EUR"}},{"$nulls":4},"Atostogų nuotraukos",null,null,{"$f":"Įvairūs[[#This Row],[Biudžetas]]-Įvairūs[[#This Row],[Faktinės]]","v":{"v":0,"d":"0.00 EUR"}}]
[null,null,"Apgyvendinimas",null,null,{"$f":"Kelionė[[#This Row],[Biudžetas]]-Kelionė[[#This Row],[Faktinės]]","v":{"v":0,"d":"0.00 EUR"}},{"$nulls":4},"Degalai ",null,null,{"$f":"Įvairūs[[#This Row],[Biudžetas]]-Įvairūs[[#This Row],[Faktinės]]","v":{"v":0,"d":"0.00 EUR"}}]
[null,null,"Transportas",null,null,{"$f":"Kelionė[[#This Row],[Biudžetas]]-Kelionė[[#This Row],[Faktinės]]","v":{"v":0,"d":"0.00 EUR"}},{"$nulls":4},"Kita (skirtukas paskutiniame stulpelyje šioje eilutėje, skirtas įtraukti eilutę)",null,null,{"$f":"Įvairūs[[#This Row],[Biudžetas]]-Įvairūs[[#This Row],[Faktinės]]","v":{"v":0,"d":"0.00 EUR"}}]
[null,null,"Kita (skirtukas paskutiniame stulpelyje šioje eilutėje, skirtas įtraukti eilutę)",null,null,{"$f":"Kelionė[[#This Row],[Biudžetas]]-Kelionė[[#This Row],[Faktinės]]","v":{"v":0,"d":"0.00 EUR"}}]
[null,null,"Suma",{"$f":"SUBTOTAL(109,Kelionė[Biudžetas])","v":{"v":0,"d":"0.00 EUR"}},{"$f":"SUBTOTAL(109,Kelionė[Faktinės])","v":{"v":0,"d":"0.00 EUR"}},{"$f":"SUBTOTAL(109,Kelionė[Skirtumas])","v":{"v":0,"d":"0.00 EUR"}},{"$nulls":4},"Suma",{"$f":"SUBTOTAL(109,Įvairūs[Biudžetas])","v":{"v":0,"d":"0.00 EUR"}},{"$f":"SUBTOTAL(109,Įvairūs[Faktinės])","v":{"v":0,"d":"0.00 EUR"}},{"$f":"SUBTOTAL(109,Įvairūs[Skirtumas])","v":{"v":0,"d":"0.00 EUR"}}]